[Event "Titled Tuesday Blitz February 22 Late 2022"]
[White "Budrewicz, Krzysztof"]
[Black "Golubenko, Valentina"]
[WhiteFideId "1127950"]
[BlackFideId "4501993"]
[WhiteElo "2248"]
[BlackElo "2164"]
[Result "0-1"]
[Round "07"]
[TimeControl "180+1"]
[Date "2022.02.23"]
[WhiteClock "0:00:21"]
[BlackClock "0:00:12"]

1. d4 {[%clk 0:03:00]}  Nf6 {[%clk 0:02:59]} 2. c4 {[%clk 0:03:00]}  c5 {[%clk 0:02:59]} 3. d5 {[%clk 0:03:00]}  d6 {[%clk 0:03:00]} 4. Nc3 {[%clk 0:02:59]}  g6 {[%clk 0:03:00]} 5. e4 {[%clk 0:02:59]}  e6 {[%clk 0:03:01]} 6. Nf3 {[%clk 0:02:58]}  exd5 {[%clk 0:03:00]} 7. cxd5 {[%clk 0:02:59]}  Bg7 {[%clk 0:03:01]} 8. h3 {[%clk 0:02:59]}  O-O {[%clk 0:03:01]} 9. Bd3 {[%clk 0:03:00]}  Re8 {[%clk 0:03:02]} 10. O-O {[%clk 0:02:59]}  a6 {[%clk 0:03:02]} 11. a4 {[%clk 0:02:59]}  Nbd7 {[%clk 0:02:57]} 12. Re1 {[%clk 0:02:59]}  Qc7 {[%clk 0:02:57]} 13. Bf4 {[%clk 0:02:58]}  c4 {[%clk 0:02:41]} 14. Bc2 {[%clk 0:02:58]}  Rb8 {[%clk 0:02:39]} 15. a5 {[%clk 0:02:56]}  Nh5 {[%clk 0:02:31]} 16. Bh2 {[%clk 0:02:48]}  b5 {[%clk 0:02:30]} 17. axb6 {[%clk 0:02:48]}  Qxb6 {[%clk 0:02:30]} 18. Ra2 {[%clk 0:02:47]}  Ne5 {[%clk 0:02:09]} 19. Nd4 {[%clk 0:02:32]}  Nd3 {[%clk 0:01:45]} 20. Bxd3 {[%clk 0:01:52]}  Bxd4 {[%clk 0:01:44]} 21. Bxc4 {[%clk 0:01:52]}  Bxf2+ {[%clk 0:01:43]} 22. Kh1 {[%clk 0:01:53]}  Bxe1 {[%clk 0:01:40]} 23. Qxe1 {[%clk 0:01:54]}  Nf6 {[%clk 0:01:10]} 24. Qh4 {[%clk 0:01:45]}  Kg7 {[%clk 0:00:59]} 25. Bg1 {[%clk 0:01:29]}  Qb4 {[%clk 0:00:52]} 26. Bd4 {[%clk 0:01:28]}  Re5 {[%clk 0:00:45]} 27. Bxe5 {[%clk 0:01:20]}  dxe5 {[%clk 0:00:46]} 28. Bxa6 {[%clk 0:01:11]}  Bxa6 {[%clk 0:00:27]} 29. Rxa6 {[%clk 0:01:11]}  Nh5 {[%clk 0:00:27]} 30. d6 {[%clk 0:00:49]}  Qxb2 {[%clk 0:00:22]} 31. Qe1 {[%clk 0:00:35]}  Nf4 {[%clk 0:00:19]} 32. Ra2 {[%clk 0:00:33]}  Qb4 {[%clk 0:00:15]} 33. d7 {[%clk 0:00:32]}  Rd8 {[%clk 0:00:15]} 34. g3 {[%clk 0:00:32]}  Nd3 {[%clk 0:00:14]} 35. Qd2 {[%clk 0:00:32]}  Rxd7 {[%clk 0:00:14]} 36. Nd5 {[%clk 0:00:32]}  Qd4 {[%clk 0:00:14]} 37. Qe3 {[%clk 0:00:29]}  Rxd5 {[%clk 0:00:13]} 38. Qf3 {[%clk 0:00:24]}  Nf2+ {[%clk 0:00:12]} 39. Kg2 {[%clk 0:00:24]}  Nxe4 {[%clk 0:00:13]} 40. Ra7 {[%clk 0:00:22]}  Nd6 {[%clk 0:00:13]} 41. Re7 {[%clk 0:00:20]}  e4 {[%clk 0:00:12]} 42. Qf4 {[%clk 0:00:19]}  Qd2+ {[%clk 0:00:12]} 43. Qxd2 {[%clk 0:00:20]}  Rxd2+ {[%clk 0:00:12]} 44. Kf1 {[%clk 0:00:21]}  Kf6 {[%clk 0:00:12]} 0-1


[Site "https://www.chess.com"]

[Event "Titled Tuesday Blitz February 22 Late 2022"]
[White "Buscar, Michael"]
[Black "Kim, Sergey"]
[WhiteFideId "2603616"]
[BlackFideId "13700570"]
[WhiteElo "2010"]
[BlackElo "2616"]
[Result "0-1"]
[Round "07"]
[TimeControl "180+1"]
[Date "2022.02.23"]
[WhiteClock "0:00:10"]
[BlackClock "0:00:38"]

1. c4 {[%clk 0:03:00]}  Nf6 {[%clk 0:02:57]} 2. g3 {[%clk 0:02:59]}  g6 {[%clk 0:02:57]} 3. Bg2 {[%clk 0:02:59]}  Bg7 {[%clk 0:02:58]} 4. e3 {[%clk 0:03:00]}  d6 {[%clk 0:02:58]} 5. Ne2 {[%clk 0:03:00]}  O-O {[%clk 0:02:59]} 6. O-O {[%clk 0:03:01]}  e5 {[%clk 0:02:59]} 7. d3 {[%clk 0:03:00]}  c6 {[%clk 0:02:57]} 8. Nbc3 {[%clk 0:03:00]}  Re8 {[%clk 0:02:56]} 9. Rb1 {[%clk 0:03:01]}  d5 {[%clk 0:02:54]} 10. b4 {[%clk 0:02:53]}  a6 {[%clk 0:02:53]} 11. a4 {[%clk 0:02:53]}  d4 {[%clk 0:02:46]} 12. Ne4 {[%clk 0:02:52]}  Bg4 {[%clk 0:02:29]} 13. exd4 {[%clk 0:02:38]}  exd4 {[%clk 0:02:28]} 14. Bg5 {[%clk 0:02:37]}  h6 {[%clk 0:02:25]} 15. Bxf6 {[%clk 0:02:35]}  Bxf6 {[%clk 0:02:24]} 16. h3 {[%clk 0:02:23]}  Bxe2 {[%clk 0:02:17]} 17. Qxe2 {[%clk 0:02:22]}  Bg7 {[%clk 0:02:18]} 18. Qf3 {[%clk 0:02:15]}  Re7 {[%clk 0:02:08]} 19. a5 {[%clk 0:02:12]}  Qc7 {[%clk 0:02:02]} 20. c5 {[%clk 0:02:07]}  Nd7 {[%clk 0:02:00]} 21. Nd6 {[%clk 0:02:07]}  Nf6 {[%clk 0:01:59]} 22. Qf4 {[%clk 0:02:03]}  Nd5 {[%clk 0:01:57]} 23. Bxd5 {[%clk 0:02:03]}  cxd5 {[%clk 0:01:56]} 24. Rfe1 {[%clk 0:01:55]}  Rf8 {[%clk 0:01:46]} 25. Kf1 {[%clk 0:01:52]}  Re6 {[%clk 0:01:39]} 26. Qf3 {[%clk 0:01:50]}  Qc6 {[%clk 0:01:32]} 27. Rxe6 {[%clk 0:01:40]}  fxe6 {[%clk 0:01:32]} 28. Qg4 {[%clk 0:01:40]}  Rf6 {[%clk 0:01:25]} 29. Re1 {[%clk 0:01:40]}  Qd7 {[%clk 0:01:21]} 30. f4 {[%clk 0:01:32]}  g5 {[%clk 0:01:09]} 31. Kg2 {[%clk 0:01:28]}  gxf4 {[%clk 0:01:08]} 32. gxf4 {[%clk 0:01:28]}  Kh7 {[%clk 0:01:08]} 33. Kh2 {[%clk 0:01:27]}  Rg6 {[%clk 0:01:08]} 34. Qh5 {[%clk 0:01:26]}  Bf8 {[%clk 0:01:04]} 35. f5 {[%clk 0:00:54]}  Bxd6+ {[%clk 0:01:03]} 36. cxd6 {[%clk 0:00:51]}  Qxd6+ {[%clk 0:01:02]} 37. Kh1 {[%clk 0:00:52]}  Rg5 {[%clk 0:00:46]} 38. Qf7+ {[%clk 0:00:18]}  Rg7 {[%clk 0:00:45]} 39. Rxe6 {[%clk 0:00:11]}  Qg3 {[%clk 0:00:44]} 40. Rg6 {[%clk 0:00:11]}  Qxh3+ {[%clk 0:00:39]} 41. Kg1 {[%clk 0:00:10]}  Rxf7 {[%clk 0:00:38]} 0-1


[Site "https://www.chess.com"]

[Event "Titled Tuesday Blitz February 22 Late 2022"]
[White "Cardoso Cardoso, Jose Gabriel"]
[Black "Carlsson, Ludvig"]
[WhiteFideId "4430492"]
[BlackFideId "1727010"]
[WhiteElo "2451"]
[BlackElo "2178"]
[Result "1-0"]
[Round "07"]
[TimeControl "180+1"]
[Date "2022.02.22"]
[WhiteClock "0:01:02"]
[BlackClock "0:00:13"]

1. Nf3 {[%clk 0:03:00]}  d5 {[%clk 0:02:59]} 2. b3 {[%clk 0:02:45]}  Bf5 {[%clk 0:02:57]} 3. Bb2 {[%clk 0:02:42]}  e6 {[%clk 0:02:57]} 4. e3 {[%clk 0:02:42]}  h6 {[%clk 0:02:57]} 5. c4 {[%clk 0:02:42]}  c6 {[%clk 0:02:57]} 6. Nc3 {[%clk 0:02:42]}  Nf6 {[%clk 0:02:57]} 7. cxd5 {[%clk 0:02:39]}  cxd5 {[%clk 0:02:56]} 8. Nd4 {[%clk 0:02:34]}  Bh7 {[%clk 0:02:54]} 9. Rc1 {[%clk 0:02:24]}  a6 {[%clk 0:02:53]} 10. Be2 {[%clk 0:02:15]}  Bd6 {[%clk 0:02:53]} 11. O-O {[%clk 0:02:12]}  O-O {[%clk 0:02:49]} 12. f4 {[%clk 0:02:11]}  Nbd7 {[%clk 0:02:45]} 13. Nf3 {[%clk 0:02:06]}  e5 {[%clk 0:02:40]} 14. fxe5 {[%clk 0:02:06]}  Nxe5 {[%clk 0:02:41]} 15. Nxd5 {[%clk 0:01:54]}  Nxf3+ {[%clk 0:02:37]} 16. Bxf3 {[%clk 0:01:55]}  Nxd5 {[%clk 0:02:36]} 17. Bxd5 {[%clk 0:01:56]}  Bxh2+ {[%clk 0:02:33]} 18. Kxh2 {[%clk 0:01:57]}  Qxd5 {[%clk 0:02:31]} 19. Qg4 {[%clk 0:01:57]}  Bg6 {[%clk 0:02:24]} 20. Bd4 {[%clk 0:01:58]}  Rfe8 {[%clk 0:02:13]} 21. Rc7 {[%clk 0:01:51]}  Re4 {[%clk 0:02:12]} 22. Qxg6 {[%clk 0:01:30]}  fxg6 {[%clk 0:02:01]} 23. Rxg7+ {[%clk 0:01:28]}  Kh8 {[%clk 0:02:02]} 24. Bc3 {[%clk 0:01:25]}  Re5 {[%clk 0:01:31]} 25. Re7 {[%clk 0:01:23]}  Kg8 {[%clk 0:01:09]} 26. Bxe5 {[%clk 0:01:21]}  Rc8 {[%clk 0:00:26]} 27. Rg7+ {[%clk 0:01:03]}  Kh8 {[%clk 0:00:26]} 28. Ba1 {[%clk 0:01:03]}  Qh5+ {[%clk 0:00:13]} 29. Kg1 {[%clk 0:01:02]} 1-0


[Site "https://www.chess.com"]

[Event "Titled Tuesday Blitz February 22 Late 2022"]
[White "Chernomordik, Pavel"]
[Black "Escudero Donoso, Felipe"]
[WhiteFideId "2804530"]
[BlackFideId "3410595"]
[WhiteElo "2249"]
[BlackElo "2184"]
[Result "1-0"]
[Round "07"]
[TimeControl "180+1"]
[Date "2022.02.23"]
[WhiteClock "0:01:32"]
[BlackClock "0:00:15"]

1. e4 {[%clk 0:03:00]}  c5 {[%clk 0:02:59]} 2. Nc3 {[%clk 0:03:00]}  g6 {[%clk 0:02:57]} 3. f4 {[%clk 0:02:59]}  Bg7 {[%clk 0:02:57]} 4. Nf3 {[%clk 0:03:00]}  Nc6 {[%clk 0:02:57]} 5. Bb5 {[%clk 0:02:59]}  Nd4 {[%clk 0:02:57]} 6. Bc4 {[%clk 0:02:59]}  e6 {[%clk 0:02:53]} 7. e5 {[%clk 0:02:58]}  d5 {[%clk 0:02:49]} 8. Nxd4 {[%clk 0:02:57]}  cxd4 {[%clk 0:02:43]} 9. Bb5+ {[%clk 0:02:56]}  Bd7 {[%clk 0:02:40]} 10. Bxd7+ {[%clk 0:02:55]}  Qxd7 {[%clk 0:02:41]} 11. Ne2 {[%clk 0:02:55]}  f6 {[%clk 0:02:20]} 12. Nxd4 {[%clk 0:02:53]}  fxe5 {[%clk 0:02:19]} 13. fxe5 {[%clk 0:02:53]}  Ne7 {[%clk 0:01:19]} 14. Nf3 {[%clk 0:02:51]}  d4 {[%clk 0:01:15]} 15. d3 {[%clk 0:02:46]}  Nc6 {[%clk 0:01:13]} 16. Qe2 {[%clk 0:02:45]}  Qd5 {[%clk 0:01:13]} 17. Bf4 {[%clk 0:02:40]}  O-O {[%clk 0:01:12]} 18. Bg3 {[%clk 0:02:39]}  Rf5 {[%clk 0:01:08]} 19. O-O {[%clk 0:02:35]}  Raf8 {[%clk 0:01:03]} 20. Rae1 {[%clk 0:02:32]}  Bh6 {[%clk 0:00:59]} 21. Bf2 {[%clk 0:02:21]}  Bf4 {[%clk 0:00:45]} 22. c4 {[%clk 0:02:08]}  dxc3 {[%clk 0:00:45]} 23. bxc3 {[%clk 0:02:07]}  Nxe5 {[%clk 0:00:42]} 24. Nd4 {[%clk 0:02:02]}  R5f7 {[%clk 0:00:38]} 25. g3 {[%clk 0:01:55]}  g5 {[%clk 0:00:11]} 26. gxf4 {[%clk 0:01:51]}  gxf4 {[%clk 0:00:12]} 27. Qxe5 {[%clk 0:01:39]}  Rg7+ {[%clk 0:00:12]} 28. Bg3 {[%clk 0:01:38]}  Qxe5 {[%clk 0:00:11]} 29. Rxe5 {[%clk 0:01:37]}  fxg3 {[%clk 0:00:12]} 30. Rxf8+ {[%clk 0:01:36]}  Kxf8 {[%clk 0:00:12]} 31. Nxe6+ {[%clk 0:01:35]}  Kf7 {[%clk 0:00:13]} 32. Nxg7 {[%clk 0:01:35]}  Kxg7 {[%clk 0:00:14]} 33. Re7+ {[%clk 0:01:32]}  Kf6 {[%clk 0:00:14]} 34. Rxb7 {[%clk 0:01:32]}  gxh2+ {[%clk 0:00:15]} 35. Kxh2 {[%clk 0:01:32]} 1-0


[Site "https://www.chess.com"]

[Event "Titled Tuesday Blitz February 22 Late 2022"]
[White "Djokic, Mihailo"]
[Black "Mirzoev, Azer"]
[WhiteFideId "976440"]
[BlackFideId "13400304"]
[WhiteElo "2523"]
[BlackElo "2709"]
[Result "1-0"]
[Round "07"]
[TimeControl "180+1"]
[Date "2022.02.23"]
[WhiteClock "0:00:04"]
[BlackClock "0:00:05"]

1. e4 {[%clk 0:03:00]}  e6 {[%clk 0:02:58]} 2. d4 {[%clk 0:03:01]}  d5 {[%clk 0:02:59]} 3. Nc3 {[%clk 0:03:01]}  Nc6 {[%clk 0:02:58]} 4. e5 {[%clk 0:02:58]}  Nge7 {[%clk 0:02:51]} 5. Nf3 {[%clk 0:02:58]}  Nf5 {[%clk 0:02:49]} 6. Be2 {[%clk 0:02:56]}  Bd7 {[%clk 0:02:48]} 7. h4 {[%clk 0:02:56]}  Be7 {[%clk 0:02:44]} 8. h5 {[%clk 0:02:55]}  Nh4 {[%clk 0:02:37]} 9. Nxh4 {[%clk 0:02:54]}  Bxh4 {[%clk 0:02:37]} 10. Be3 {[%clk 0:02:55]}  Bg5 {[%clk 0:02:30]} 11. Qd2 {[%clk 0:02:54]}  Bxe3 {[%clk 0:02:29]} 12. Qxe3 {[%clk 0:02:55]}  Qe7 {[%clk 0:02:29]} 13. h6 {[%clk 0:02:55]}  g6 {[%clk 0:02:28]} 14. O-O-O {[%clk 0:02:55]}  O-O-O {[%clk 0:02:28]} 15. a3 {[%clk 0:02:49]}  Kb8 {[%clk 0:02:27]} 16. Kb1 {[%clk 0:02:48]}  b6 {[%clk 0:02:27]} 17. Rh3 {[%clk 0:02:48]}  Rhf8 {[%clk 0:02:21]} 18. g4 {[%clk 0:02:37]}  f5 {[%clk 0:02:13]} 19. gxf5 {[%clk 0:02:22]}  Rxf5 {[%clk 0:02:12]} 20. Bd3 {[%clk 0:02:16]}  Rf7 {[%clk 0:02:09]} 21. Ne2 {[%clk 0:02:13]}  Rdf8 {[%clk 0:02:04]} 22. f4 {[%clk 0:02:13]}  Na5 {[%clk 0:02:03]} 23. Rdh1 {[%clk 0:02:09]}  Qe8 {[%clk 0:01:58]} 24. Rg1 {[%clk 0:01:55]}  Bb5 {[%clk 0:01:57]} 25. b3 {[%clk 0:01:48]}  Bxd3 {[%clk 0:01:56]} 26. Qxd3 {[%clk 0:01:49]}  Nb7 {[%clk 0:01:52]} 27. c4 {[%clk 0:01:36]}  Rd7 {[%clk 0:01:46]} 28. cxd5 {[%clk 0:01:30]}  Rxd5 {[%clk 0:01:45]} 29. Nc3 {[%clk 0:01:28]}  Rd8 {[%clk 0:01:40]} 30. Qe4 {[%clk 0:01:18]}  Na5 {[%clk 0:01:29]} 31. Ka2 {[%clk 0:01:15]}  Qc6 {[%clk 0:01:19]} 32. Qe3 {[%clk 0:01:05]}  Rf7 {[%clk 0:01:14]} 33. Rd1 {[%clk 0:00:48]}  Rfd7 {[%clk 0:01:11]} 34. Rh2 {[%clk 0:00:44]}  Qb7 {[%clk 0:00:57]} 35. Ne4 {[%clk 0:00:39]}  Nc6 {[%clk 0:00:53]} 36. Rhd2 {[%clk 0:00:37]}  Ne7 {[%clk 0:00:50]} 37. Nf6 {[%clk 0:00:37]}  Nd5 {[%clk 0:00:44]} 38. Nxd7+ {[%clk 0:00:37]}  Rxd7 {[%clk 0:00:45]} 39. Qg3 {[%clk 0:00:34]}  a5 {[%clk 0:00:40]} 40. Kb2 {[%clk 0:00:33]}  Rf7 {[%clk 0:00:38]} 41. Rf2 {[%clk 0:00:29]}  Qc8 {[%clk 0:00:34]} 42. Rg1 {[%clk 0:00:25]}  Ne7 {[%clk 0:00:22]} 43. Qd3 {[%clk 0:00:21]}  Qf8 {[%clk 0:00:18]} 44. Rgf1 {[%clk 0:00:12]}  Qxh6 {[%clk 0:00:12]} 45. Qc4 {[%clk 0:00:10]}  Nd5 {[%clk 0:00:12]} 46. Qc6 {[%clk 0:00:10]}  Re7 {[%clk 0:00:13]} 47. Rc1 {[%clk 0:00:06]}  Qf8 {[%clk 0:00:11]} 48. Ka2 {[%clk 0:00:03]}  Qe8 {[%clk 0:00:10]} 49. Qxe8+ {[%clk 0:00:02]}  Rxe8 {[%clk 0:00:11]} 50. Rh1 {[%clk 0:00:02]}  Re7 {[%clk 0:00:11]} 51. Rh6 {[%clk 0:00:02]}  Rf7 {[%clk 0:00:10]} 52. Rfh2 {[%clk 0:00:03]}  Rxf4 {[%clk 0:00:10]} 53. Rxh7 {[%clk 0:00:03]}  Rxd4 {[%clk 0:00:10]} 54. Rg7 {[%clk 0:00:04]}  Nf4 {[%clk 0:00:09]} 55. Rf7 {[%clk 0:00:02]}  Kb7 {[%clk 0:00:08]} 56. a4 {[%clk 0:00:03]}  Nd5 {[%clk 0:00:07]} 57. Rg7 {[%clk 0:00:03]}  Re4 {[%clk 0:00:07]} 58. Rxg6 {[%clk 0:00:03]}  Rxe5 {[%clk 0:00:08]} 59. Rg7 {[%clk 0:00:03]}  Nb4+ {[%clk 0:00:08]} 60. Kb2 {[%clk 0:00:03]}  Nd3+ {[%clk 0:00:07]} 61. Kc3 {[%clk 0:00:04]}  Nc5 {[%clk 0:00:08]} 62. Rhh7 {[%clk 0:00:04]}  Re3+ {[%clk 0:00:07]} 63. Kd4 {[%clk 0:00:04]}  Rd3+ {[%clk 0:00:08]} 64. Kc4 {[%clk 0:00:05]}  Rd8 {[%clk 0:00:05]} 65. Rxc7+ {[%clk 0:00:05]}  Kb8 {[%clk 0:00:05]} 66. Rc6 {[%clk 0:00:05]}  Nd7 {[%clk 0:00:05]} 67. Kb5 {[%clk 0:00:04]}  Kb7 {[%clk 0:00:05]} 68. Rd6 {[%clk 0:00:04]}  Kc7 {[%clk 0:00:05]} 69. Rxe6 {[%clk 0:00:04]}  Rf8 {[%clk 0:00:05]} 70. Rc6+ {[%clk 0:00:04]}  Kd8 {[%clk 0:00:04]} 71. Rd6 {[%clk 0:00:05]}  Rf5+ {[%clk 0:00:05]} 72. Ka6 {[%clk 0:00:04]}  Kc8 {[%clk 0:00:05]} 73. Rhxd7 {[%clk 0:00:04]} 1-0


[Site "https://www.chess.com"]

[Event "Titled Tuesday Blitz February 22 Late 2022"]
[White "Dubov, Daniil"]
[Black "Pultinevicius, Paulius"]
[WhiteFideId "24126055"]
[BlackFideId "12809390"]
[WhiteElo "2791"]
[BlackElo "2413"]
[Result "1-0"]
[Round "07"]
[TimeControl "180+1"]
[Date "2022.02.22"]
[WhiteClock "0:00:31"]
[BlackClock "0:00:07"]

1. d4 {[%clk 0:01:01]}  Nf6 {[%clk 0:02:58]} 2. Nf3 {[%clk 0:01:00]}  g6 {[%clk 0:02:57]} 3. c4 {[%clk 0:00:59]}  Bg7 {[%clk 0:02:57]} 4. Nc3 {[%clk 0:01:00]}  d5 {[%clk 0:02:57]} 5. cxd5 {[%clk 0:00:58]}  Nxd5 {[%clk 0:02:58]} 6. e4 {[%clk 0:00:58]}  Nxc3 {[%clk 0:02:58]} 7. bxc3 {[%clk 0:00:58]}  c5 {[%clk 0:02:58]} 8. Bb5+ {[%clk 0:00:59]}  Nc6 {[%clk 0:02:54]} 9. O-O {[%clk 0:00:59]}  O-O {[%clk 0:02:49]} 10. Bxc6 {[%clk 0:00:59]}  bxc6 {[%clk 0:02:50]} 11. Qc2 {[%clk 0:01:00]}  Qa5 {[%clk 0:02:40]} 12. a4 {[%clk 0:00:58]}  Bg4 {[%clk 0:02:33]} 13. Ne5 {[%clk 0:00:57]}  Bxe5 {[%clk 0:02:32]} 14. dxe5 {[%clk 0:00:57]}  Rfd8 {[%clk 0:02:29]} 15. Bg5 {[%clk 0:00:54]}  Qc7 {[%clk 0:02:23]} 16. h3 {[%clk 0:00:48]}  Be6 {[%clk 0:02:22]} 17. f4 {[%clk 0:00:45]}  Bc4 {[%clk 0:02:21]} 18. Rf3 {[%clk 0:00:44]}  Rab8 {[%clk 0:01:48]} 19. Qf2 {[%clk 0:00:43]}  Bd3 {[%clk 0:01:47]} 20. Re1 {[%clk 0:00:42]}  c4 {[%clk 0:01:38]} 21. Qh4 {[%clk 0:00:41]}  Rd7 {[%clk 0:00:52]} 22. Qh6 {[%clk 0:00:41]}  Kh8 {[%clk 0:00:30]} 23. f5 {[%clk 0:00:33]}  Qd8 {[%clk 0:00:15]} 24. f6 {[%clk 0:00:33]}  Qf8 {[%clk 0:00:10]} 25. Qxf8+ {[%clk 0:00:31]}  Rxf8 {[%clk 0:00:10]} 26. fxe7 {[%clk 0:00:31]}  Re8 {[%clk 0:00:10]} 27. Rxf7 {[%clk 0:00:31]}  Kg8 {[%clk 0:00:09]} 28. e6 {[%clk 0:00:31]}  Rd6 {[%clk 0:00:07]} 29. Bh6 {[%clk 0:00:31]} 1-0


[Site "https://www.chess.com"]

[Event "Titled Tuesday Blitz February 22 Late 2022"]
[White "Estrada Nieto, Julian"]
[Black "Gatterer, Florian"]
[WhiteFideId "5101018"]
[BlackFideId "811688"]
[WhiteElo "2246"]
[BlackElo "2218"]
[Result "0-1"]
[Round "07"]
[TimeControl "180+1"]
[Date "2022.02.23"]
[WhiteClock "0:00:10"]
[BlackClock "0:00:12"]

1. e4 {[%clk 0:03:00]}  c5 {[%clk 0:02:59]} 2. Nf3 {[%clk 0:03:00]}  e6 {[%clk 0:02:58]} 3. c3 {[%clk 0:03:00]}  Nf6 {[%clk 0:02:57]} 4. e5 {[%clk 0:03:00]}  Nd5 {[%clk 0:02:57]} 5. Bc4 {[%clk 0:03:01]}  Nb6 {[%clk 0:02:56]} 6. Bb3 {[%clk 0:03:01]}  c4 {[%clk 0:02:56]} 7. Bc2 {[%clk 0:03:01]}  d5 {[%clk 0:02:56]} 8. d4 {[%clk 0:03:01]}  cxd3 {[%clk 0:02:55]} 9. Qxd3 {[%clk 0:03:01]}  Be7 {[%clk 0:02:52]} 10. O-O {[%clk 0:03:01]}  Nc6 {[%clk 0:02:51]} 11. Re1 {[%clk 0:02:57]}  Bd7 {[%clk 0:02:51]} 12. Na3 {[%clk 0:02:50]}  a6 {[%clk 0:02:51]} 13. Bf4 {[%clk 0:02:49]}  h6 {[%clk 0:02:49]} 14. Rad1 {[%clk 0:02:42]}  Qc7 {[%clk 0:02:46]} 15. Nd4 {[%clk 0:02:36]}  Nxd4 {[%clk 0:02:42]} 16. cxd4 {[%clk 0:02:25]}  Nc4 {[%clk 0:02:24]} 17. Nxc4 {[%clk 0:02:25]}  dxc4 {[%clk 0:02:24]} 18. Qg3 {[%clk 0:02:23]}  g5 {[%clk 0:02:21]} 19. Be3 {[%clk 0:02:17]}  Bc6 {[%clk 0:02:21]} 20. b3 {[%clk 0:01:47]}  cxb3 {[%clk 0:02:03]} 21. Bxb3 {[%clk 0:01:47]}  O-O-O {[%clk 0:02:03]} 22. Rc1 {[%clk 0:01:39]}  Kb8 {[%clk 0:01:50]} 23. f3 {[%clk 0:01:32]}  Qd7 {[%clk 0:01:41]} 24. Qf2 {[%clk 0:01:31]}  Bd5 {[%clk 0:01:40]} 25. Rb1 {[%clk 0:01:26]}  Rc8 {[%clk 0:01:32]} 26. Qe2 {[%clk 0:01:23]}  Ka8 {[%clk 0:01:31]} 27. Bxd5 {[%clk 0:01:20]}  Qxd5 {[%clk 0:01:30]} 28. Rb6 {[%clk 0:01:21]}  Qc4 {[%clk 0:00:52]} 29. Qb2 {[%clk 0:01:11]}  Rb8 {[%clk 0:00:25]} 30. Rb1 {[%clk 0:01:10]}  Qd5 {[%clk 0:00:19]} 31. Rxb7 {[%clk 0:00:41]}  Qxb7 {[%clk 0:00:18]} 32. Qxb7+ {[%clk 0:00:16]}  Rxb7 {[%clk 0:00:18]} 33. Rc1 {[%clk 0:00:17]}  Rhb8 {[%clk 0:00:17]} 34. Rc6 {[%clk 0:00:16]}  Rb6 {[%clk 0:00:14]} 35. Rc7 {[%clk 0:00:16]}  R6b7 {[%clk 0:00:14]} 36. Rc6 {[%clk 0:00:16]}  Bd8 {[%clk 0:00:14]} 37. Kf2 {[%clk 0:00:15]}  Bb6 {[%clk 0:00:12]} 38. Kg3 {[%clk 0:00:12]}  Rc7 {[%clk 0:00:12]} 39. Rd6 {[%clk 0:00:13]}  Ba7 {[%clk 0:00:10]} 40. Rxa6 {[%clk 0:00:12]}  Rb6 {[%clk 0:00:09]} 41. Ra4 {[%clk 0:00:12]}  Rcb7 {[%clk 0:00:08]} 42. d5 {[%clk 0:00:11]}  exd5 {[%clk 0:00:07]} 43. Bxb6 {[%clk 0:00:10]}  Rxb6 {[%clk 0:00:08]} 44. Kg4 {[%clk 0:00:10]}  Kb7 {[%clk 0:00:08]} 45. Kf5 {[%clk 0:00:09]}  Rc6 {[%clk 0:00:08]} 46. Ra5 {[%clk 0:00:09]}  d4 {[%clk 0:00:08]} 47. Rd5 {[%clk 0:00:10]}  Rc7 {[%clk 0:00:08]} 48. Kf6 {[%clk 0:00:09]}  Kc8 {[%clk 0:00:08]} 49. e6 {[%clk 0:00:08]}  fxe6 {[%clk 0:00:07]} 50. Kxe6 {[%clk 0:00:09]}  Rc6+ {[%clk 0:00:08]} 51. Kf7 {[%clk 0:00:08]}  Rc7+ {[%clk 0:00:08]} 52. Ke8 {[%clk 0:00:08]}  Rc6 {[%clk 0:00:07]} 53. Rd8+ {[%clk 0:00:08]}  Kb7 {[%clk 0:00:06]} 54. Rd7+ {[%clk 0:00:08]}  Ka6 {[%clk 0:00:06]} 55. Kf7 {[%clk 0:00:09]}  Rc3 {[%clk 0:00:06]} 56. Kg6 {[%clk 0:00:08]}  Bb6 {[%clk 0:00:06]} 57. Kxh6 {[%clk 0:00:08]}  d3 {[%clk 0:00:07]} 58. g3 {[%clk 0:00:07]}  Be3 {[%clk 0:00:07]} 59. Kh5 {[%clk 0:00:06]}  d2 {[%clk 0:00:07]} 60. h4 {[%clk 0:00:04]}  gxh4 {[%clk 0:00:06]} 61. gxh4 {[%clk 0:00:05]}  Rc1 {[%clk 0:00:06]} 62. Kg4 {[%clk 0:00:04]}  d1=Q {[%clk 0:00:06]} 63. Rxd1 {[%clk 0:00:05]}  Rxd1 {[%clk 0:00:06]} 64. h5 {[%clk 0:00:06]}  Rh1 {[%clk 0:00:06]} 65. f4 {[%clk 0:00:05]}  Bxf4 {[%clk 0:00:06]} 66. Kxf4 {[%clk 0:00:05]}  Rxh5 {[%clk 0:00:06]} 67. Kg4 {[%clk 0:00:06]}  Rh1 {[%clk 0:00:07]} 68. a4 {[%clk 0:00:06]}  Ra1 {[%clk 0:00:07]} 69. Kf5 {[%clk 0:00:07]}  Rxa4 {[%clk 0:00:08]} 70. Ke5 {[%clk 0:00:08]}  Ra5+ {[%clk 0:00:08]} 71. Kd6 {[%clk 0:00:08]}  Rb5 {[%clk 0:00:09]} 72. Kc6 {[%clk 0:00:08]}  Ka5 {[%clk 0:00:09]} 73. Kc7 {[%clk 0:00:08]}  Rb4 {[%clk 0:00:10]} 74. Kc6 {[%clk 0:00:09]}  Rb5 {[%clk 0:00:10]} 75. Kc7 {[%clk 0:00:09]}  Kb4 {[%clk 0:00:11]} 76. Kc6 {[%clk 0:00:10]}  Kc4 {[%clk 0:00:11]} 77. Kd6 {[%clk 0:00:11]}  Rc5 {[%clk 0:00:12]} 78. Ke6 {[%clk 0:00:11]}  Rd5 {[%clk 0:00:12]} 79. Ke7 {[%clk 0:00:10]}  Kc5 {[%clk 0:00:12]} 80. Ke6 {[%clk 0:00:11]}  Kc6 {[%clk 0:00:12]} 81. Ke7 {[%clk 0:00:12]}  Rd6 {[%clk 0:00:12]} 82. Ke8 {[%clk 0:00:12]}  Kd5 {[%clk 0:00:13]} 83. Ke7 {[%clk 0:00:13]}  Ke5 {[%clk 0:00:13]} 84. Kf7 {[%clk 0:00:12]}  Rd7+ {[%clk 0:00:13]} 85. Ke8 {[%clk 0:00:13]}  Ke6 {[%clk 0:00:12]} 86. Kf8 {[%clk 0:00:12]}  Rb7 {[%clk 0:00:12]} 87. Kg8 {[%clk 0:00:10]}  Kf6 {[%clk 0:00:12]} 0-1


[Site "https://www.chess.com"]